[Event "Skalica Rapid 2020"]
[Site "Skalica"]
[Date "2020.08.29"]
[Round "2.9"]
[White "Romanova, Ela"]
[Black "Stos, Radek"]
[Result "0-1"]
[ECO "B30"]
[WhiteElo "1529"]
[BlackElo "1790"]
[Annotator "NA"]
[PlyCount "62"]
[EventDate "2020.08.29"]
[EventType "swiss"]
[EventCountry "SVK"]
[SourceTitle "playchess.com"]
[Source "ChessBase"]
[SourceQuality "1"]
[TimeControl "600+5"]

1. e4 {[%emt 0:00:00]} c5 {[%emt 0:00:00]} 2. Nf3 {[%emt 0:00:01]} Nc6 {[%emt 0:00:00]} 3. Bb5 {[%emt 0:00:01]} d6 {[%emt 0:00:00]} 4. c3 {[%emt 0:00:14]} Bd7 {[%emt 0:00:01]} 5. d4 {[%emt 0:00:04]} cxd4 {[%emt 0:00:02]} 6. cxd4 {[%emt 0:00:02]} Nf6 {[%emt 0:00:03]} 7. Nc3 {[%emt 0:00:06]} g6 {[%emt 0:00:03]} 8. O-O {[%emt 0:00:07]} Bg7 {[%emt 0:00:02]} 9. Be3 {[%emt 0:00:16]} O-O {[%emt 0:00:02]} 10. Qd2 {[%emt 0:00:05]} a6 {[%emt 0:00:03]} 11. Ba4 {[%emt 0:00:17]} b5 {[%emt 0:00:02]} 12. Bb3 {[%emt 0:00:04]} Na5 {[%emt 0:00:02]} 13. Bh6 {[%emt 0:00:18]} Rc8 {[%emt 0:00:17]} 14. Bxg7 {[%emt 0:00:32]} Kxg7 {[%emt 0:00:02]} 15. e5 {[%emt 0:00:39]} Ng4 {[%emt 0:00:47]} 16. h3 {[%emt 0:00:28]} Nh6 {[%emt 0:00:02]} 17. Rfe1 {[%emt 0:02:28]} Nc4 {[%emt 0:00:12]} 18. Bxc4 {[%emt 0:00:12]} Rxc4 {[%emt 0:00:03]} 19. b3 {[%emt 0:00:44]} Rc8 {[%emt 0:00:06]} 20. exd6 {[%emt 0:00:15]} exd6 {[%emt 0:00:02]} 21. Qf4 {[%emt 0:00:34]} Rxc3 {[%emt 0:00:16]} 22. Qxd6 {[%emt 0:00:10]} Rxf3 {[%emt 0:00:09]} 23. gxf3 {[%emt 0:00:53]} Bxh3 {[%emt 0:00:03]} 24. Qe5+ {[%emt 0:00:39]} Kg8 {[%emt 0:00:05]} 25. Kh2 {[%emt 0:00:29]} Be6 {[%emt 0:00:07]} 26. Rad1 {[%emt 0:00:25]} Qh4+ {[%emt 0:00:07]} 27. Kg1 {[%emt 0:00:14]} Nf5 {[%emt 0:01:12]} 28. Re4 {[%emt 0:00:55]} Qh3 {[%emt 0:00:38]} 29. Rf4 {[%emt 0:01:06]} Nh4 {[%emt 0:00:08]} 30. Qg5 {[%emt 0:00:04]} Nxf3+ {[%emt 0:00:08]} 31. Rxf3 {[%emt 0:00:02]} Qxf3 {[%emt 0:00:03]} 0-1

[Event "Skalica Rapid 2020"]
[Site "Skalica"]
[Date "2020.08.29"]
[Round "2.10"]
[White "Abel Peter"]
[Black "Beres Tomas"]
[Result "1-0"]
[ECO "A39"]
[WhiteElo "2200"]
[BlackElo "1956"]
[Annotator "ChessBase"]
[PlyCount "99"]
[EventDate "2020.08.29"]
[EventType "swiss"]
[EventCountry "SVK"]
[SourceTitle "playchess.com"]
[Source "ChessBase"]
[SourceQuality "1"]
[TimeControl "600+5"]

1. c4 {[%emt 0:00:00]} c5 {[%emt 0:00:00]} 2. Nc3 {[%emt 0:00:02]} Nc6 {[%emt 0:00:00]} 3. g3 {[%emt 0:00:01]} g6 {[%emt 0:00:00]} 4. Bg2 {[%emt 0:00:06]} Bg7 {[%emt 0:00:00]} 5. Nf3 {[%emt 0:00:00]} Nf6 {[%emt 0:00:00]} 6. d4 {[%emt 0:00:00]} cxd4 {[%emt 0:00:00]} 7. Nxd4 {[%emt 0:00:00]} O-O {[%emt 0:00:02]} 8. O-O {[%emt 0:00:02]} Nxd4 {[%emt 0:00:03]} 9. Qxd4 {[%emt 0:00:02]} d6 {[%emt 0:00:01]} 10. Rd1 {[%emt 0:00:16]} Nd7 {[%emt 0:00:03]} 11. Qd2 {[%emt 0:00:19]} a5 {[%emt 0:00:04]} 12. Rb1 {[%emt 0:00:43]} Nc5 {[%emt 0:00:08]} 13. e4 {[%emt 0:01:06]} a4 {[%emt 0:01:27]} 14. Nd5 {[%emt 0:00:20]} Bg4 {[%emt 0:00:20]} 15. f3 {[%emt 0:00:40]} Be6 {[%emt 0:00:01]} 16. Qe2 {[%emt 0:00:05]} Bxd5 {[%emt 0:01:55]} 17. Rxd5 {[%emt 0:00:08]} Qa5 {[%emt 0:00:53]} 18. Kh1 {[%emt 0:00:55]} Rab8 {[%emt 0:01:19]} 19. Bd2 {[%emt 0:00:39]} Qa6 {[%emt 0:00:20]} 20. Be3 {[%emt 0:00:27]} Rfc8 {[%emt 0:01:00]} 21. Bf1 {[%emt 0:00:20]} Nd7 {[%emt 0:01:07]} 22. Rb5 {[%emt 0:00:27]} b6 {[%emt 0:00:51]} 23. f4 {[%emt 0:02:35]} Nc5 {[%emt 0:00:14]} 24. Bg2 {[%emt 0:00:01]} Ne6 {[%emt 0:00:06]} 25. Rd1 {[%emt 0:00:05]} Nc5 {[%emt 0:00:45]} 26. Bf3 {[%emt 0:00:08]} Rc7 {[%emt 0:00:08]} 27. Kg2 {[%emt 0:00:03]} Rbc8 {[%emt 0:00:10]} 28. Bf2 {[%emt 0:00:32]} Nd7 {[%emt 0:00:17]} 29. b3 {[%emt 0:00:09]} axb3 {[%emt 0:00:02]} 30. axb3 {[%emt 0:00:01]} Nc5 {[%emt 0:00:07]} 31. Rd2 {[%emt 0:00:29]} Ra7 {[%emt 0:00:06]} 32. Bg4 {[%emt 0:00:25]} Rca8 {[%emt 0:00:15]} 33. Bf3 {[%emt 0:00:02]} Rc8 {[%emt 0:00:08]} 34. b4 {[%emt 0:00:21]} Na4 {[%emt 0:00:42]} 35. c5 {[%emt 0:01:02]} Nc3 {[%emt 0:00:04]} 36. Rxb6 {[%emt 0:00:04]} Nxe2 {[%emt 0:00:12]} 37. Rxa6 {[%emt 0:00:01]} Rxa6 {[%emt 0:00:05]} 38. Bxe2 {[%emt 0:00:02]} Ra4 {[%emt 0:00:00]} 39. cxd6 {[%emt 0:00:02]} exd6 {[%emt 0:00:01]} 40. b5 {[%emt 0:00:04]} Rxe4 {[%emt 0:00:10]} 41. Bf3 {[%emt 0:00:05]} Rb4 {[%emt 0:00:01]} 42. Bc6 {[%emt 0:00:00]} Rb8 {[%emt 0:00:09]} 43. Rxd6 {[%emt 0:00:02]} R4xb5 {[%emt 0:00:07]} 44. Bxb5 {[%emt 0:00:01]} Rxb5 {[%emt 0:00:01]} 45. Rd8+ {[%emt 0:00:05]} Bf8 {[%emt 0:00:00]} 46. Bd4 {[%emt 0:00:01]} f5 {[%emt 0:00:09]} 47. Be5 {[%emt 0:00:06]} Kf7 {[%emt 0:00:02]} 48. Rd7+ {[%emt 0:00:00]} Kg8 {[%emt 0:00:12]} 49. h4 {[%emt 0:00:06]} Rc5 {[%emt 0:00:10]} 50. Rd8 {[%emt 0:00:03]} 1-0

[Event "Skalica Rapid 2020"]
[Site "Skalica"]
[Date "2020.08.29"]
[Round "2.11"]
[White "Danada Tomas"]
[Black "Jurakic Lukas"]
[Result "0-1"]
[ECO "A12"]
[WhiteElo "2122"]
[BlackElo "1918"]
[Annotator "ChessBase"]
[PlyCount "82"]
[EventDate "2020.08.29"]
[EventType "swiss"]
[EventCountry "SVK"]
[SourceTitle "playchess.com"]
[Source "ChessBase"]
[SourceQuality "1"]
[TimeControl "600+5"]

1. e3 {[%emt 0:00:00]} Nf6 {[%emt 0:00:00]} 2. Nf3 {[%emt 0:00:00]} d5 {[%emt 0:00:04]} 3. c4 {[%emt 0:00:00]} c6 {[%emt 0:00:03]} 4. b3 {[%emt 0:00:18]} Bg4 {[%emt 0:00:13]} 5. h3 {[%emt 0:00:08]} Bxf3 {[%emt 0:00:08]} 6. gxf3 {[%emt 0:00:11]} e5 {[%emt 0:00:08]} 7. Bb2 {[%emt 0:00:04]} d4 {[%emt 0:00:19]} 8. f4 {[%emt 0:01:15]} dxe3 {[%emt 0:00:39]} 9. dxe3 {[%emt 0:00:04]} Bb4+ {[%emt 0:00:11]} 10. Ke2 {[%emt 0:00:19]} Qxd1+ {[%emt 0:00:52]} 11. Kxd1 {[%emt 0:00:01]} exf4 {[%emt 0:00:03]} 12. exf4 {[%emt 0:00:10]} Nbd7 {[%emt 0:00:05]} 13. Ke2 {[%emt 0:00:32]} O-O-O {[%emt 0:00:10]} 14. Rg1 {[%emt 0:00:22]} Rhe8+ {[%emt 0:00:05]} 15. Kf3 {[%emt 0:00:02]} g6 {[%emt 0:00:50]} 16. Nc3 {[%emt 0:03:15]} Nc5 {[%emt 0:01:13]} 17. Rd1 {[%emt 0:00:14]} Rxd1 {[%emt 0:00:23]} 18. Nxd1 {[%emt 0:00:01]} Nfe4 {[%emt 0:00:07]} 19. a3 {[%emt 0:00:46]} Be1 {[%emt 0:00:27]} 20. b4 {[%emt 0:00:05]} Na4 {[%emt 0:01:59]} 21. Be5 {[%emt 0:01:05]} Nd2+ {[%emt 0:00:25]} 22. Kg3 {[%emt 0:00:15]} f6 {[%emt 0:00:17]} 23. Bd4 {[%emt 0:00:15]} Rd8 {[%emt 0:00:39]} 24. Bxa7 {[%emt 0:00:51]} Nxf1+ {[%emt 0:00:14]} 25. Rxf1 {[%emt 0:00:04]} Rxd1 {[%emt 0:00:01]} 26. b5 {[%emt 0:00:28]} cxb5 {[%emt 0:00:10]} 27. cxb5 {[%emt 0:00:01]} b6 {[%emt 0:00:07]} 28. Kf3 {[%emt 0:00:03]} Kb7 {[%emt 0:00:11]} 29. Bxb6 {[%emt 0:00:13]} Kxb6 {[%emt 0:00:01]} 30. f5 {[%emt 0:00:15]} gxf5 {[%emt 0:00:09]} 31. Rg1 {[%emt 0:00:01]} Nc3 {[%emt 0:00:16]} 32. Rg7 {[%emt 0:00:07]} Rd2 {[%emt 0:00:14]} 33. Rxh7 {[%emt 0:00:19]} Rxf2+ {[%emt 0:00:03]} 34. Ke3 {[%emt 0:00:09]} f4+ {[%emt 0:00:16]} 35. Kd3 {[%emt 0:00:06]} Kxb5 {[%emt 0:00:25]} 36. Rh6 {[%emt 0:00:15]} Nd5 {[%emt 0:00:21]} 37. Ke4 {[%emt 0:00:10]} Kc4 {[%emt 0:00:08]} 38. h4 {[%emt 0:00:28]} Re2+ {[%emt 0:00:02]} 39. Kf3 {[%emt 0:00:06]} Re3+ {[%emt 0:00:03]} 40. Kg2 {[%emt 0:00:01]} f3+ {[%emt 0:00:02]} 41. Kf1 {[%emt 0:00:01]} Bg3 {[%emt 0:00:03]} 0-1

[Event "Skalica Rapid 2020"]
[Site "Skalica"]
[Date "2020.08.29"]
[Round "2.11"]
[White "Gurevich, Michele"]
[Black "Kaplan, Milan"]
[Result "1-0"]
[ECO "B30"]
[WhiteElo "1107"]
[BlackElo "1762"]
[Annotator "NA"]
[PlyCount "59"]
[EventDate "2020.08.29"]
[EventType "swiss"]
[EventCountry "SVK"]
[SourceTitle "playchess.com"]
[Source "ChessBase"]
[SourceQuality "1"]
[TimeControl "600+5"]

1. e4 {[%emt 0:00:00]} c5 {[%emt 0:00:12]} 2. Nf3 {[%emt 0:00:00]} Nc6 {[%emt 0:00:02]} 3. Bc4 {[%emt 0:00:10]} e6 {[%emt 0:00:07]} 4. O-O {[%emt 0:00:26]} Nf6 {[%emt 0:00:21]} 5. d3 {[%emt 0:00:22]} d5 {[%emt 0:00:17]} 6. Bb5 {[%emt 0:00:35]} Be7 {[%emt 0:01:39]} 7. e5 {[%emt 0:00:31]} Nd7 {[%emt 0:00:03]} 8. Bxc6 {[%emt 0:00:14]} bxc6 {[%emt 0:00:02]} 9. d4 {[%emt 0:00:52]} O-O {[%emt 0:00:09]} 10. dxc5 {[%emt 0:00:30]} Bxc5 {[%emt 0:01:21]} 11. Be3 {[%emt 0:00:12]} Bxe3 {[%emt 0:00:25]} 12. fxe3 {[%emt 0:00:02]} Qb6 {[%emt 0:00:19]} 13. Qe2 {[%emt 0:00:29]} Qxb2 {[%emt 0:00:25]} 14. Nbd2 {[%emt 0:01:34]} Qxc2 {[%emt 0:01:16]} 15. Rfc1 {[%emt 0:00:31]} Qf5 {[%emt 0:00:24]} 16. Nd4 {[%emt 0:00:25]} Qxe5 {[%emt 0:00:24]} 17. Rf1 {[%emt 0:00:19]} c5 {[%emt 0:00:28]} 18. N4f3 {[%emt 0:00:17]} Qh5 {[%emt 0:00:09]} 19. Qf2 {[%emt 0:00:26]} Ba6 {[%emt 0:00:30]} 20. Rfe1 {[%emt 0:00:21]} Rab8 {[%emt 0:00:19]} 21. e4 {[%emt 0:00:18]} d4 {[%emt 0:00:11]} 22. Qg3 {[%emt 0:00:28]} e5 {[%emt 0:00:10]} 23. Rad1 {[%emt 0:00:53]} c4 {[%emt 0:00:06]} 24. Nb1 {[%emt 0:00:11]} c3 {[%emt 0:00:12]} 25. Na3 {[%emt 0:00:17]} Rb2 {[%emt 0:00:43]} 26. Rc1 {[%emt 0:00:36]} Rxa2 {[%emt 0:00:15]} 27. Nc2 {[%emt 0:00:04]} Bd3 {[%emt 0:00:16]} 28. Nb4 {[%emt 0:00:12]} Rd2 {[%emt 0:00:05]} 29. Nxd2 {[%emt 0:00:04]} cxd2 {[%emt 0:00:02]} 30. Nxd3 {[%emt 0:00:07]} 1-0

[Event "Skalica Rapid 2020"]
[Site "Skalica"]
[Date "2020.08.29"]
[Round "2.12"]
[White "Ihnat Marek"]
[Black "Cajka Tibor"]
[Result "0-1"]
[ECO "B45"]
[WhiteElo "1738"]
[BlackElo "2116"]
[Annotator "ChessBase"]
[PlyCount "24"]
[EventDate "2020.08.29"]
[EventType "swiss"]
[EventCountry "SVK"]
[SourceTitle "playchess.com"]
[Source "ChessBase"]
[SourceQuality "1"]
[TimeControl "600+5"]

1. e4 {[%emt 0:00:00]} c5 {[%emt 0:00:00]} 2. Nc3 {[%emt 0:00:00]} Nc6 {[%emt 0:00:00]} 3. Nf3 {[%emt 0:00:04]} e6 {[%emt 0:00:02]} 4. d4 {[%emt 0:00:00]} cxd4 {[%emt 0:00:02]} 5. Nxd4 {[%emt 0:00:02]} Nf6 {[%emt 0:00:01]} 6. Ndb5 {[%emt 0:00:00]} e5 {[%emt 0:00:17]} 7. Bg5 {[%emt 0:00:00]} d6 {[%emt 0:00:05]} 8. Bxf6 {[%emt 0:00:00]} Be7 {[%emt 0:00:05]} 9. Bg5 {[%emt 0:00:05]} Bf8 {[%emt 0:00:05]} 10. Na3 {[%emt 0:00:01]} Be7 {[%emt 0:00:00]} 11. Nd5 {[%emt 0:00:01]} b5 {[%emt 0:00:02]} 12. Bf6 {[%emt 0:00:01]} a6 {[%emt 0:00:14]} 0-1

[Event "Skalica Rapid 2020"]
[Site "Skalica"]
[Date "2020.08.29"]
[Round "2.12"]
[White "Bucek, Miroslav"]
[Black "Tupy, Bystrik"]
[Result "1-0"]
[ECO "C79"]
[WhiteElo "1422"]
[BlackElo "1702"]
[Annotator "NA"]
[PlyCount "47"]
[EventDate "2020.08.29"]
[EventType "swiss"]
[EventCountry "SVK"]
[SourceTitle "playchess.com"]
[Source "ChessBase"]
[SourceQuality "1"]
[TimeControl "600+5"]

1. e4 {[%emt 0:00:00]} e5 {[%emt 0:00:00]} 2. Nf3 {[%emt 0:00:00]} Nc6 {[%emt 0:00:00]} 3. Bb5 {[%emt 0:00:02]} a6 {[%emt 0:00:02]} 4. Ba4 {[%emt 0:00:02]} Nf6 {[%emt 0:00:07]} 5. O-O {[%emt 0:00:05]} d6 {[%emt 0:00:06]} 6. Re1 {[%emt 0:00:07]} Bg4 {[%emt 0:00:04]} 7. h3 {[%emt 0:00:06]} Bd7 {[%emt 0:00:02]} 8. c3 {[%emt 0:00:06]} Be7 {[%emt 0:00:03]} 9. d4 {[%emt 0:00:06]} exd4 {[%emt 0:00:03]} 10. cxd4 {[%emt 0:00:02]} O-O {[%emt 0:00:06]} 11. Bg5 {[%emt 0:00:19]} Ne8 {[%emt 0:00:13]} 12. Bxe7 {[%emt 0:00:13]} Nxe7 {[%emt 0:00:02]} 13. Bc2 {[%emt 0:00:11]} Ng6 {[%emt 0:00:05]} 14. Nc3 {[%emt 0:00:05]} Nh4 {[%emt 0:00:30]} 15. e5 {[%emt 0:01:02]} dxe5 {[%emt 0:00:40]} 16. Nxe5 {[%emt 0:00:33]} Qg5 {[%emt 0:01:18]} 17. g4 {[%emt 0:01:04]} h5 {[%emt 0:01:11]} 18. Nxd7 {[%emt 0:00:14]} hxg4 {[%emt 0:00:29]} 19. Qxg4 {[%emt 0:00:08]} Nf3+ {[%emt 0:00:13]} 20. Kg2 {[%emt 0:00:56]} Nxe1+ {[%emt 0:01:53]} 21. Rxe1 {[%emt 0:00:04]} Qd2 {[%emt 0:00:39]} 22. Qe4 {[%emt 0:00:24]} Qg5+ {[%emt 0:00:21]} 23. Kf1 {[%emt 0:00:17]} Nf6 {[%emt 0:00:06]} 24. Nxf6+ {[%emt 0:00:06]} 1-0

[Event "Skalica Rapid 2020"]
[Site "Skalica"]
[Date "2020.08.29"]
[Round "2.13"]
[White "Bombek Peter"]
[Black "Krupa Miroslav"]
[Result "0-1"]
[ECO "D00"]
[WhiteElo "2090"]
[BlackElo "1816"]
[Annotator "ChessBase"]
[PlyCount "90"]
[EventDate "2020.08.29"]
[EventType "swiss"]
[EventCountry "SVK"]
[SourceTitle "playchess.com"]
[Source "ChessBase"]
[SourceQuality "1"]
[TimeControl "600+5"]

1. d4 {[%emt 0:00:00]} Nf6 {[%emt 0:00:00]} 2. Bg5 {[%emt 0:00:00]} d5 {[%emt 0:00:15]} 3. Nd2 {[%emt 0:00:03]} Bf5 {[%emt 0:00:09]} 4. e3 {[%emt 0:00:12]} e6 {[%emt 0:00:04]} 5. c4 {[%emt 0:00:05]} c6 {[%emt 0:00:05]} 6. Qb3 {[%emt 0:00:07]} Qc7 {[%emt 0:01:21]} 7. Bf4 {[%emt 0:00:09]} Qc8 {[%emt 0:00:26]} 8. Ngf3 {[%emt 0:00:15]} h6 {[%emt 0:01:04]} 9. h3 {[%emt 0:00:03]} Be7 {[%emt 0:00:02]} 10. Be2 {[%emt 0:00:03]} Nbd7 {[%emt 0:00:08]} 11. O-O {[%emt 0:00:11]} O-O {[%emt 0:00:03]} 12. Rac1 {[%emt 0:00:02]} Ne4 {[%emt 0:02:14]} 13. Rfd1 {[%emt 0:01:04]} Ndf6 {[%emt 0:01:47]} 14. Ne5 {[%emt 0:00:30]} Nxd2 {[%emt 0:00:07]} 15. Rxd2 {[%emt 0:00:01]} Ne4 {[%emt 0:00:02]} 16. Rdd1 {[%emt 0:00:07]} f6 {[%emt 0:00:17]} 17. Nd3 {[%emt 0:00:42]} Qd7 {[%emt 0:00:13]} 18. f3 {[%emt 0:00:49]} Ng5 {[%emt 0:00:04]} 19. h4 {[%emt 0:00:41]} Nf7 {[%emt 0:00:01]} 20. Bg3 {[%emt 0:00:17]} g5 {[%emt 0:00:28]} 21. Nf2 {[%emt 0:00:19]} Bd6 {[%emt 0:01:26]} 22. Bxd6 {[%emt 0:00:19]} Nxd6 {[%emt 0:00:02]} 23. cxd5 {[%emt 0:00:20]} exd5 {[%emt 0:00:03]} 24. e4 {[%emt 0:00:23]} Be6 {[%emt 0:00:02]} 25. e5 {[%emt 0:00:30]} fxe5 {[%emt 0:00:19]} 26. dxe5 {[%emt 0:00:02]} Nf7 {[%emt 0:00:03]} 27. Nd3 {[%emt 0:00:28]} b6 {[%emt 0:00:34]} 28. hxg5 {[%emt 0:00:50]} Nxg5 {[%emt 0:00:23]} 29. f4 {[%emt 0:00:41]} Ne4 {[%emt 0:00:03]} 30. Bf3 {[%emt 0:00:10]} Kh8 {[%emt 0:00:29]} 31. Qc2 {[%emt 0:00:24]} Bf5 {[%emt 0:00:04]} 32. Qxc6 {[%emt 0:00:15]} Rac8 {[%emt 0:00:10]} 33. Qxd7 {[%emt 0:00:10]} Bxd7 {[%emt 0:00:01]} 34. g3 {[%emt 0:00:29]} Be6 {[%emt 0:00:12]} 35. Bxe4 {[%emt 0:00:42]} dxe4 {[%emt 0:00:00]} 36. Nb4 {[%emt 0:00:06]} Bg4 {[%emt 0:00:05]} 37. Rxc8 {[%emt 0:00:25]} Rxc8 {[%emt 0:00:01]} 38. Re1 {[%emt 0:00:13]} Bf3 {[%emt 0:00:05]} 39. Nd5 {[%emt 0:00:17]} Rc2 {[%emt 0:00:02]} 40. e6 {[%emt 0:00:22]} e3 {[%emt 0:00:18]} 41. e7 {[%emt 0:00:07]} Rg2+ {[%emt 0:00:01]} 42. Kf1 {[%emt 0:00:03]} e2+ {[%emt 0:00:01]} 43. Rxe2 {[%emt 0:00:04]} Rxe2 {[%emt 0:00:02]} 44. f5 {[%emt 0:00:32]} Re5 {[%emt 0:00:12]} 45. f6 {[%emt 0:00:03]} Bxd5 {[%emt 0:00:02]} 0-1

[Event "Skalica Rapid 2020"]
[Site "Skalica"]
[Date "2020.08.29"]
[Round "2.16"]
[White "Janas Peter"]
[Black "Striskova Lucia"]
[Result "0-1"]
[ECO "D85"]
[WhiteElo "1562"]
[BlackElo "1484"]
[Annotator "NA"]
[PlyCount "70"]
[EventDate "2020.08.29"]
[EventType "swiss"]
[EventCountry "SVK"]
[SourceTitle "playchess.com"]
[Source "ChessBase"]
[SourceQuality "1"]
[TimeControl "600+5"]

1. d4 {[%emt 0:00:01]} Nf6 {[%emt 0:00:00]} 2. Nf3 {[%emt 0:00:03]} g6 {[%emt 0:00:00]} 3. c4 {[%emt 0:00:04]} Bg7 {[%emt 0:00:00]} 4. Nc3 {[%emt 0:00:02]} d5 {[%emt 0:00:00]} 5. cxd5 {[%emt 0:00:11]} Nxd5 {[%emt 0:00:02]} 6. e4 {[%emt 0:00:02]} Nxc3 {[%emt 0:00:01]} 7. bxc3 {[%emt 0:00:01]} c5 {[%emt 0:00:07]} 8. Be3 {[%emt 0:00:03]} Nc6 {[%emt 0:00:04]} 9. Bb5 {[%emt 0:00:11]} O-O {[%emt 0:00:07]} 10. Bxc6 {[%emt 0:00:13]} bxc6 {[%emt 0:00:02]} 11. Rc1 {[%emt 0:00:29]} Ba6 {[%emt 0:00:47]} 12. Qa4 {[%emt 0:01:22]} Bb5 {[%emt 0:00:50]} 13. Qa3 {[%emt 0:00:11]} cxd4 {[%emt 0:00:45]} 14. cxd4 {[%emt 0:00:37]} Qd7 {[%emt 0:01:24]} 15. Qc5 {[%emt 0:01:01]} Qg4 {[%emt 0:00:32]} 16. Qg5 {[%emt 0:02:55]} Qxe4 {[%emt 0:00:03]} 17. a4 {[%emt 0:01:18]} Bxa4 {[%emt 0:00:36]} 18. O-O {[%emt 0:00:05]} Rad8 {[%emt 0:01:42]} 19. Qa5 {[%emt 0:00:16]} Bb5 {[%emt 0:00:08]} 20. Rfe1 {[%emt 0:00:03]} Qg4 {[%emt 0:00:34]} 21. Qxa7 {[%emt 0:00:16]} Rd7 {[%emt 0:00:25]} 22. Qc5 {[%emt 0:00:28]} e6 {[%emt 0:00:57]} 23. Ne5 {[%emt 0:00:29]} Bxe5 {[%emt 0:00:02]} 24. dxe5 {[%emt 0:00:02]} Rd5 {[%emt 0:00:14]} 25. Qc3 {[%emt 0:00:06]} Rfd8 {[%emt 0:00:21]} 26. Bh6 {[%emt 0:00:25]} Qh5 {[%emt 0:00:13]} 27. Bf4 {[%emt 0:00:12]} Rd4 {[%emt 0:00:16]} 28. Bg3 {[%emt 0:00:13]} Rc4 {[%emt 0:00:24]} 29. Qa5 {[%emt 0:00:25]} Rc8 {[%emt 0:00:40]} 30. Rxc4 {[%emt 0:00:08]} Bxc4 {[%emt 0:00:01]} 31. Qc5 {[%emt 0:00:13]} Bd5 {[%emt 0:00:04]} 32. h3 {[%emt 0:00:10]} Qf5 {[%emt 0:00:07]} 33. Re3 {[%emt 0:00:14]} Qb1+ {[%emt 0:00:09]} 34. Kh2 {[%emt 0:00:01]} Qf1 {[%emt 0:00:03]} 35. f4 {[%emt 0:00:19]} Qxg2# {[%emt 0:00:03]} 0-1

[Event "Skalica Rapid 2020"]
[Site "Skalica"]
[Date "2020.08.29"]
[Round "2.18"]
[White "Krakovsky Peter"]
[Black "Takacs Laszlo"]
[Result "0-1"]
[ECO "A29"]
[WhiteElo "1661"]
[BlackElo "2128"]
[Annotator "ChessBase"]
[PlyCount "52"]
[EventDate "2020.08.29"]
[EventType "swiss"]
[EventCountry "SVK"]
[SourceTitle "playchess.com"]
[Source "ChessBase"]
[SourceQuality "1"]
[TimeControl "600+5"]

1. c4 {[%emt 0:00:00]} e5 {[%emt 0:00:00]} 2. Nc3 {[%emt 0:00:00]} Nf6 {[%emt 0:00:00]} 3. g3 {[%emt 0:00:00]} d5 {[%emt 0:00:00]} 4. cxd5 {[%emt 0:00:01]} Nxd5 {[%emt 0:00:01]} 5. Bg2 {[%emt 0:00:06]} Nb6 {[%emt 0:00:02]} 6. d3 {[%emt 0:00:00]} Nc6 {[%emt 0:00:04]} 7. Be3 {[%emt 0:00:02]} Be7 {[%emt 0:00:03]} 8. Nf3 {[%emt 0:00:00]} O-O {[%emt 0:00:03]} 9. O-O {[%emt 0:00:00]} f5 {[%emt 0:00:11]} 10. Nd2 {[%emt 0:00:11]} f4 {[%emt 0:00:14]} 11. Bxb6 {[%emt 0:00:05]} axb6 {[%emt 0:00:04]} 12. a3 {[%emt 0:00:02]} Kh8 {[%emt 0:00:24]} 13. Qb3 {[%emt 0:00:02]} Nd4 {[%emt 0:00:10]} 14. Qd1 {[%emt 0:00:27]} c6 {[%emt 0:00:46]} 15. Nc4 {[%emt 0:00:06]} Qc7 {[%emt 0:00:18]} 16. Ne4 {[%emt 0:00:13]} Bg4 {[%emt 0:00:14]} 17. h3 {[%emt 0:00:04]} Bxe2 {[%emt 0:00:05]} 18. Qe1 {[%emt 0:00:12]} f3 {[%emt 0:00:24]} 19. Bh1 {[%emt 0:00:08]} b5 {[%emt 0:00:04]} 20. Ne3 {[%emt 0:00:46]} Qd7 {[%emt 0:00:15]} 21. Kh2 {[%emt 0:00:17]} c5 {[%emt 0:01:15]} 22. Rg1 {[%emt 0:00:04]} Ra6 {[%emt 0:00:06]} 23. Rc1 {[%emt 0:00:47]} Qxh3+ {[%emt 0:02:07]} 24. Kxh3 {[%emt 0:00:10]} Rh6+ {[%emt 0:00:03]} 25. Kg4 {[%emt 0:00:02]} Rf4+ {[%emt 0:00:04]} 26. gxf4 {[%emt 0:00:02]} Rh4+ {[%emt 0:00:02]} 0-1

[Event "Skalica Rapid 2020"]
[Site "Skalica"]
[Date "2020.08.29"]
[Round "3.1"]
[White "Pniaczek, Marek"]
[Black "Ihnat, Marek"]
[Result "1-0"]
[ECO "B36"]
[WhiteElo "1969"]
[BlackElo "1738"]
[Annotator "ChessBase"]
[PlyCount "47"]
[EventDate "2020.08.29"]
[EventType "swiss"]
[EventCountry "SVK"]
[SourceTitle "playchess.com"]
[Source "ChessBase"]
[SourceQuality "1"]
[TimeControl "600+5"]

1. e4 {[%emt 0:00:00]} c5 {[%emt 0:00:00]} 2. Nf3 {[%emt 0:00:00]} Nc6 {[%emt 0:00:00]} 3. d4 {[%emt 0:00:00]} cxd4 {[%emt 0:00:00]} 4. Nxd4 {[%emt 0:00:01]} g6 {[%emt 0:00:00]} 5. c4 {[%emt 0:00:01]} Nf6 {[%emt 0:00:01]} 6. Nc3 {[%emt 0:00:09]} d6 {[%emt 0:00:00]} 7. f3 {[%emt 0:00:07]} Nxd4 {[%emt 0:00:06]} 8. Qxd4 {[%emt 0:00:04]} Bg7 {[%emt 0:00:01]} 9. Be3 {[%emt 0:00:01]} O-O {[%emt 0:00:02]} 10. Qd2 {[%emt 0:01:10]} a5 {[%emt 0:00:01]} 11. Na4 {[%emt 0:00:11]} Bd7 {[%emt 0:00:37]} 12. Nb6 {[%emt 0:00:13]} Ra6 {[%emt 0:00:36]} 13. c5 {[%emt 0:00:18]} dxc5 {[%emt 0:00:02]} 14. Nxd7 {[%emt 0:00:05]} Nxd7 {[%emt 0:00:15]} 15. Bxa6 {[%emt 0:00:02]} bxa6 {[%emt 0:00:01]} 16. O-O {[%emt 0:00:04]} Qc7 {[%emt 0:00:07]} 17. Rfd1 {[%emt 0:00:14]} Ne5 {[%emt 0:00:06]} 18. Rac1 {[%emt 0:00:04]} c4 {[%emt 0:00:30]} 19. Kh1 {[%emt 0:00:52]} Qb7 {[%emt 0:00:34]} 20. Bd4 {[%emt 0:00:41]} Nd3 {[%emt 0:00:20]} 21. Bxg7 {[%emt 0:00:10]} Kxg7 {[%emt 0:00:03]} 22. Rxc4 {[%emt 0:00:09]} Nxb2 {[%emt 0:00:46]} 23. Rb1 {[%emt 0:00:15]} Nxc4 {[%emt 0:00:34]} 24. Qc3+ {[%emt 0:00:02]} 1-0